[Event "Titled Tuesday Blitz September 21 2021"]
[White "Chos, Alexey"]
[Black "Aldokhin, Ivan"]
[WhiteFideId "14117762"]
[BlackFideId "24115720"]
[WhiteElo "2234"]
[BlackElo "2265"]
[Result "0-1"]
[Round "03"]
[TimeControl "180+1"]
[Date "2021.09.21"]
[WhiteClock "0:00:03"]
[BlackClock "0:00:09"]

1. d4 {[%clk 0:03:00]}  Nf6 {[%clk 0:02:59]} 2. Nf3 {[%clk 0:03:00]}  g6 {[%clk 0:03:00]} 3. c4 {[%clk 0:03:00]}  Bg7 {[%clk 0:03:00]} 4. Nc3 {[%clk 0:02:59]}  d6 {[%clk 0:03:01]} 5. g3 {[%clk 0:02:58]}  O-O {[%clk 0:03:02]} 6. Bg2 {[%clk 0:02:58]}  Nc6 {[%clk 0:03:02]} 7. O-O {[%clk 0:02:56]}  Bf5 {[%clk 0:03:03]} 8. a3 {[%clk 0:02:54]}  Ne4 {[%clk 0:03:02]} 9. Nh4 {[%clk 0:02:52]}  Nxc3 {[%clk 0:03:02]} 10. bxc3 {[%clk 0:02:52]}  Bd7 {[%clk 0:03:02]} 11. e4 {[%clk 0:02:52]}  Na5 {[%clk 0:02:50]} 12. Qd3 {[%clk 0:02:47]}  c5 {[%clk 0:02:21]} 13. Be3 {[%clk 0:02:36]}  Qc7 {[%clk 0:02:12]} 14. Rac1 {[%clk 0:02:28]}  Rac8 {[%clk 0:02:08]} 15. d5 {[%clk 0:01:45]}  Ba4 {[%clk 0:01:54]} 16. Rb1 {[%clk 0:01:44]}  Bb3 {[%clk 0:01:43]} 17. Rxb3 {[%clk 0:01:33]}  Nxb3 {[%clk 0:01:44]} 18. Rb1 {[%clk 0:01:33]}  Na5 {[%clk 0:01:42]} 19. f4 {[%clk 0:01:32]}  b5 {[%clk 0:01:28]} 20. cxb5 {[%clk 0:01:22]}  c4 {[%clk 0:01:27]} 21. Qc2 {[%clk 0:01:22]}  Nb3 {[%clk 0:01:25]} 22. Bf1 {[%clk 0:01:17]}  Rb8 {[%clk 0:01:23]} 23. Bxc4 {[%clk 0:01:13]}  Qxc4 {[%clk 0:01:23]} 24. Qxb3 {[%clk 0:01:12]}  Qxe4 {[%clk 0:01:06]} 25. Bxa7 {[%clk 0:01:10]}  Rbc8 {[%clk 0:00:59]} 26. Rc1 {[%clk 0:01:08]}  Rc7 {[%clk 0:00:44]} 27. b6 {[%clk 0:01:06]}  Qe3+ {[%clk 0:00:38]} 28. Kg2 {[%clk 0:01:04]}  Rxa7 {[%clk 0:00:31]} 29. bxa7 {[%clk 0:01:02]}  Qxc1 {[%clk 0:00:31]} 30. Qa4 {[%clk 0:00:59]}  Ra8 {[%clk 0:00:26]} 31. c4 {[%clk 0:00:59]}  Bd4 {[%clk 0:00:19]} 32. Nf3 {[%clk 0:00:52]}  Bc5 {[%clk 0:00:15]} 33. Qc6 {[%clk 0:00:50]}  Qc2+ {[%clk 0:00:13]} 34. Kh3 {[%clk 0:00:49]}  Rxa7 {[%clk 0:00:13]} 35. Qe8+ {[%clk 0:00:48]}  Kg7 {[%clk 0:00:12]} 36. Ng5 {[%clk 0:00:47]}  Qf5+ {[%clk 0:00:13]} 37. Kg2 {[%clk 0:00:46]}  Rb7 {[%clk 0:00:07]} 38. h3 {[%clk 0:00:10]}  Rb2+ {[%clk 0:00:06]} 39. Kf3 {[%clk 0:00:11]}  h5 {[%clk 0:00:05]} 40. Ne6+ {[%clk 0:00:07]}  fxe6 {[%clk 0:00:05]} 41. Qxe7+ {[%clk 0:00:08]}  Qf7 {[%clk 0:00:04]} 42. Qg5 {[%clk 0:00:09]}  Rf2+ {[%clk 0:00:03]} 43. Ke4 {[%clk 0:00:08]}  exd5+ {[%clk 0:00:03]} 44. cxd5 {[%clk 0:00:07]}  Qf5+ {[%clk 0:00:03]} 45. Qxf5 {[%clk 0:00:07]}  gxf5+ {[%clk 0:00:04]} 46. Kxf5 {[%clk 0:00:06]}  Bxa3 {[%clk 0:00:05]} 47. Kg5 {[%clk 0:00:06]}  Rg2 {[%clk 0:00:05]} 48. g4 {[%clk 0:00:05]}  hxg4 {[%clk 0:00:05]} 49. hxg4 {[%clk 0:00:06]}  Bc1 {[%clk 0:00:06]} 50. Kf5 {[%clk 0:00:06]}  Rf2 {[%clk 0:00:06]} 51. Ke6 {[%clk 0:00:07]}  Rxf4 {[%clk 0:00:07]} 52. Kxd6 {[%clk 0:00:06]}  Rxg4 {[%clk 0:00:08]} 53. Kc6 {[%clk 0:00:07]}  Ba3 {[%clk 0:00:08]} 54. Kd7 {[%clk 0:00:04]}  Rg6 {[%clk 0:00:09]} 55. Kc7 {[%clk 0:00:03]}  Rd6 {[%clk 0:00:09]} 0-1


[Site "https://www.chess.com"]

[Event "Titled Tuesday Blitz September 21 2021"]
[White "Costachi, Mihnea"]
[Black "Kim, Sergey"]
[WhiteFideId "1217518"]
[BlackFideId "13700570"]
[WhiteElo "2482"]
[BlackElo "2417"]
[Result "1-0"]
[Round "03"]
[TimeControl "180+1"]
[Date "2021.09.21"]
[WhiteClock "0:01:43"]
[BlackClock "0:00:14"]

1. e4 {[%clk 0:03:00]}  e5 {[%clk 0:02:58]} 2. Nf3 {[%clk 0:03:00]}  Nc6 {[%clk 0:02:58]} 3. Bc4 {[%clk 0:03:00]}  Bc5 {[%clk 0:02:57]} 4. d3 {[%clk 0:03:00]}  Nf6 {[%clk 0:02:56]} 5. Bg5 {[%clk 0:02:59]}  d6 {[%clk 0:02:56]} 6. c3 {[%clk 0:02:57]}  h6 {[%clk 0:02:55]} 7. Bh4 {[%clk 0:02:56]}  g5 {[%clk 0:02:50]} 8. Bg3 {[%clk 0:02:56]}  Bg4 {[%clk 0:02:50]} 9. Nbd2 {[%clk 0:02:55]}  Qe7 {[%clk 0:02:41]} 10. b4 {[%clk 0:02:54]}  Bb6 {[%clk 0:02:40]} 11. h3 {[%clk 0:02:54]}  Bh5 {[%clk 0:02:38]} 12. a4 {[%clk 0:02:54]}  a6 {[%clk 0:02:37]} 13. a5 {[%clk 0:02:52]}  Ba7 {[%clk 0:02:35]} 14. Qb3 {[%clk 0:02:52]}  Kf8 {[%clk 0:02:22]} 15. b5 {[%clk 0:02:52]}  Nd8 {[%clk 0:02:14]} 16. b6 {[%clk 0:02:48]}  cxb6 {[%clk 0:02:11]} 17. axb6 {[%clk 0:02:49]}  Bb8 {[%clk 0:02:11]} 18. O-O {[%clk 0:02:45]}  Kg7 {[%clk 0:02:05]} 19. d4 {[%clk 0:02:45]}  Nc6 {[%clk 0:01:59]} 20. Bd5 {[%clk 0:02:38]}  Re8 {[%clk 0:01:43]} 21. Bxc6 {[%clk 0:02:38]}  bxc6 {[%clk 0:01:41]} 22. Ra5 {[%clk 0:02:38]}  Bxf3 {[%clk 0:01:10]} 23. Nxf3 {[%clk 0:02:38]}  Nxe4 {[%clk 0:01:04]} 24. Bh2 {[%clk 0:02:34]}  d5 {[%clk 0:00:56]} 25. Bxe5+ {[%clk 0:02:30]}  Bxe5 {[%clk 0:00:55]} 26. Nxe5 {[%clk 0:02:31]}  Qe6 {[%clk 0:00:50]} 27. b7 {[%clk 0:02:31]}  Rab8 {[%clk 0:00:47]} 28. Qb6 {[%clk 0:02:24]}  Nxc3 {[%clk 0:00:35]} 29. Rxa6 {[%clk 0:02:19]}  f6 {[%clk 0:00:32]} 30. Nxc6 {[%clk 0:02:13]}  Ne2+ {[%clk 0:00:31]} 31. Kh1 {[%clk 0:02:12]}  Qe4 {[%clk 0:00:24]} 32. Nxb8 {[%clk 0:02:10]}  Nf4 {[%clk 0:00:15]} 33. Qxf6+ {[%clk 0:01:48]}  Kh7 {[%clk 0:00:14]} 34. Qxh6+ {[%clk 0:01:43]} 1-0


[Site "https://www.chess.com"]

[Event "Titled Tuesday Blitz September 21 2021"]
[White "Djokic, Mihailo"]
[Black "Vogel, Roven"]
[WhiteFideId "976440"]
[BlackFideId "12908088"]
[WhiteElo "2008"]
[BlackElo "2516"]
[Result "1-0"]
[Round "03"]
[TimeControl "180+1"]
[Date "2021.09.21"]
[WhiteClock "0:00:12"]
[BlackClock "0:01:29"]

1. e4 {[%clk 0:03:00]}  c6 {[%clk 0:02:59]} 2. d4 {[%clk 0:03:00]}  d5 {[%clk 0:03:00]} 3. e5 {[%clk 0:03:01]}  Bf5 {[%clk 0:02:59]} 4. h4 {[%clk 0:03:01]}  h5 {[%clk 0:02:59]} 5. Bg5 {[%clk 0:03:01]}  Qb6 {[%clk 0:02:58]} 6. Bd3 {[%clk 0:03:02]}  Qxd4 {[%clk 0:02:52]} 7. Nf3 {[%clk 0:03:01]}  Qg4 {[%clk 0:02:52]} 8. Bxf5 {[%clk 0:03:02]}  Qxf5 {[%clk 0:02:52]} 9. O-O {[%clk 0:03:03]}  e6 {[%clk 0:02:51]} 10. c4 {[%clk 0:03:03]}  Bc5 {[%clk 0:02:46]} 11. cxd5 {[%clk 0:02:57]}  exd5 {[%clk 0:02:45]} 12. Qb3 {[%clk 0:01:54]}  Bb6 {[%clk 0:02:44]} 13. Nc3 {[%clk 0:01:54]}  Nd7 {[%clk 0:02:41]} 14. Rae1 {[%clk 0:01:37]}  Nc5 {[%clk 0:02:40]} 15. Qd1 {[%clk 0:01:28]}  Ne6 {[%clk 0:02:39]} 16. Na4 {[%clk 0:01:17]}  Qg4 {[%clk 0:02:31]} 17. Qb3 {[%clk 0:01:09]}  Qc4 {[%clk 0:02:28]} 18. Qxc4 {[%clk 0:01:05]}  dxc4 {[%clk 0:02:29]} 19. Nc3 {[%clk 0:00:50]}  Ba5 {[%clk 0:02:26]} 20. Rd1 {[%clk 0:00:42]}  Bxc3 {[%clk 0:02:24]} 21. bxc3 {[%clk 0:00:42]}  Ne7 {[%clk 0:02:24]} 22. Nd2 {[%clk 0:00:37]}  Nxg5 {[%clk 0:02:15]} 23. hxg5 {[%clk 0:00:37]}  Nd5 {[%clk 0:02:14]} 24. Nxc4 {[%clk 0:00:36]}  Nxc3 {[%clk 0:02:01]} 25. Nd6+ {[%clk 0:00:36]}  Ke7 {[%clk 0:02:00]} 26. Rd3 {[%clk 0:00:36]}  Ne2+ {[%clk 0:01:59]} 27. Kh2 {[%clk 0:00:35]}  Rhf8 {[%clk 0:01:43]} 28. f4 {[%clk 0:00:34]}  c5 {[%clk 0:01:39]} 29. Nf5+ {[%clk 0:00:22]}  Ke6 {[%clk 0:01:38]} 30. Nxg7+ {[%clk 0:00:22]}  Ke7 {[%clk 0:01:38]} 31. f5 {[%clk 0:00:13]}  Rfd8 {[%clk 0:01:34]} 32. f6+ {[%clk 0:00:09]}  Kf8 {[%clk 0:01:34]} 33. Rxd8+ {[%clk 0:00:08]}  Rxd8 {[%clk 0:01:35]} 34. e6 {[%clk 0:00:09]}  Rc8 {[%clk 0:01:25]} 35. e7+ {[%clk 0:00:09]}  Kg8 {[%clk 0:01:26]} 36. e8=Q+ {[%clk 0:00:09]}  Rxe8 {[%clk 0:01:26]} 37. Nxe8 {[%clk 0:00:10]}  c4 {[%clk 0:01:27]} 38. Rf2 {[%clk 0:00:08]}  Nd4 {[%clk 0:01:27]} 39. Rf4 {[%clk 0:00:07]}  Ne6 {[%clk 0:01:25]} 40. Rxc4 {[%clk 0:00:07]}  Nxg5 {[%clk 0:01:26]} 41. Nd6 {[%clk 0:00:06]}  Kh7 {[%clk 0:01:25]} 42. Rc7 {[%clk 0:00:06]}  Kg6 {[%clk 0:01:25]} 43. Rxb7 {[%clk 0:00:07]}  a5 {[%clk 0:01:25]} 44. Rb5 {[%clk 0:00:07]}  a4 {[%clk 0:01:24]} 45. Ra5 {[%clk 0:00:07]}  Kxf6 {[%clk 0:01:24]} 46. Rxa4 {[%clk 0:00:07]}  Ke6 {[%clk 0:01:24]} 47. Ne4 {[%clk 0:00:07]}  Nh7 {[%clk 0:01:24]} 48. Ng3 {[%clk 0:00:07]}  Nf6 {[%clk 0:01:23]} 49. Ra6+ {[%clk 0:00:07]}  Ke5 {[%clk 0:01:24]} 50. Rxf6 {[%clk 0:00:08]}  Kxf6 {[%clk 0:01:25]} 51. Nxh5+ {[%clk 0:00:09]}  Kg5 {[%clk 0:01:26]} 52. Ng3 {[%clk 0:00:09]}  f5 {[%clk 0:01:26]} 53. a4 {[%clk 0:00:09]}  f4 {[%clk 0:01:27]} 54. a5 {[%clk 0:00:10]}  fxg3+ {[%clk 0:01:27]} 55. Kxg3 {[%clk 0:00:11]}  Kf6 {[%clk 0:01:28]} 56. a6 {[%clk 0:00:11]}  Kg5 {[%clk 0:01:29]} 57. a7 {[%clk 0:00:12]} 1-0


[Site "https://www.chess.com"]

[Event "Titled Tuesday Blitz September 21 2021"]
[White "Dmitrenko, Viktor"]
[Black "Laurusas, Tomas"]
[WhiteFideId "14110270"]
[BlackFideId "12803731"]
[WhiteElo "2294"]
[BlackElo "2573"]
[Result "0-1"]
[Round "03"]
[TimeControl "180+1"]
[Date "2021.09.21"]
[WhiteClock "0:00:12"]
[BlackClock "0:00:27"]

1. d4 {[%clk 0:03:00]}  Nf6 {[%clk 0:02:59]} 2. Nf3 {[%clk 0:02:55]}  d5 {[%clk 0:02:57]} 3. c4 {[%clk 0:02:54]}  c6 {[%clk 0:02:57]} 4. Qc2 {[%clk 0:02:49]}  dxc4 {[%clk 0:02:40]} 5. e4 {[%clk 0:02:46]}  b5 {[%clk 0:02:40]} 6. b3 {[%clk 0:02:40]}  cxb3 {[%clk 0:02:38]} 7. axb3 {[%clk 0:02:41]}  g6 {[%clk 0:02:38]} 8. Bd2 {[%clk 0:02:36]}  a5 {[%clk 0:02:38]} 9. d5 {[%clk 0:02:02]}  Bb7 {[%clk 0:02:21]} 10. dxc6 {[%clk 0:01:34]}  Bxc6 {[%clk 0:02:22]} 11. Bc3 {[%clk 0:01:16]}  b4 {[%clk 0:02:11]} 12. Bxf6 {[%clk 0:01:06]}  exf6 {[%clk 0:02:12]} 13. Nbd2 {[%clk 0:01:04]}  Be7 {[%clk 0:02:05]} 14. Bc4 {[%clk 0:00:31]}  O-O {[%clk 0:02:03]} 15. O-O {[%clk 0:00:31]}  Qb6 {[%clk 0:02:00]} 16. e5 {[%clk 0:00:27]}  fxe5 {[%clk 0:01:48]} 17. Nxe5 {[%clk 0:00:26]}  Bb7 {[%clk 0:01:49]} 18. Rfe1 {[%clk 0:00:19]}  Bf6 {[%clk 0:01:35]} 19. Ndf3 {[%clk 0:00:18]}  Bxf3 {[%clk 0:01:33]} 20. gxf3 {[%clk 0:00:17]}  Ra7 {[%clk 0:01:31]} 21. Rad1 {[%clk 0:00:16]}  Re7 {[%clk 0:01:28]} 22. Nxf7 {[%clk 0:00:14]}  Rfxf7 {[%clk 0:01:13]} 23. Rxe7 {[%clk 0:00:14]}  Bxe7 {[%clk 0:01:12]} 24. Qe4 {[%clk 0:00:14]}  Kg7 {[%clk 0:00:57]} 25. Bxf7 {[%clk 0:00:13]}  Kxf7 {[%clk 0:00:58]} 26. Qd5+ {[%clk 0:00:12]}  Qe6 {[%clk 0:00:56]} 27. Qxa5 {[%clk 0:00:11]}  Nc6 {[%clk 0:00:56]} 28. Qb5 {[%clk 0:00:09]}  Ne5 {[%clk 0:00:52]} 29. Kg2 {[%clk 0:00:07]}  Qxb3 {[%clk 0:00:51]} 30. Qd5+ {[%clk 0:00:01]}  Qxd5 {[%clk 0:00:50]} 31. Rxd5 {[%clk 0:00:02]}  Ke6 {[%clk 0:00:51]} 32. Rb5 {[%clk 0:00:02]}  Nc6 {[%clk 0:00:44]} 33. f4 {[%clk 0:00:03]}  Nd4 {[%clk 0:00:44]} 34. Rb6+ {[%clk 0:00:03]}  Kd5 {[%clk 0:00:44]} 35. Kg3 {[%clk 0:00:03]}  b3 {[%clk 0:00:43]} 36. Rb7 {[%clk 0:00:02]}  Bd6 {[%clk 0:00:40]} 37. Kg4 {[%clk 0:00:01]}  Kc6 {[%clk 0:00:39]} 38. Rxb3 {[%clk 0:00:01]}  Nxb3 {[%clk 0:00:39]} 39. f5 {[%clk 0:00:02]}  gxf5+ {[%clk 0:00:35]} 40. Kxf5 {[%clk 0:00:02]}  Be7 {[%clk 0:00:35]} 41. Ke6 {[%clk 0:00:01]}  Bh4 {[%clk 0:00:34]} 42. h3 {[%clk 0:00:02]}  Nd4+ {[%clk 0:00:33]} 43. Kf7 {[%clk 0:00:03]}  Bxf2 {[%clk 0:00:24]} 44. Kg7 {[%clk 0:00:04]}  h5 {[%clk 0:00:23]} 45. Kg6 {[%clk 0:00:05]}  h4 {[%clk 0:00:23]} 46. Kh5 {[%clk 0:00:04]}  Bg3 {[%clk 0:00:23]} 47. Kg4 {[%clk 0:00:05]}  Kd5 {[%clk 0:00:24]} 48. Kg5 {[%clk 0:00:04]}  Ke4 {[%clk 0:00:25]} 49. Kg4 {[%clk 0:00:05]}  Ke3 {[%clk 0:00:25]} 50. Kg5 {[%clk 0:00:06]}  Kf3 {[%clk 0:00:26]} 51. Kh5 {[%clk 0:00:06]}  Kg2 {[%clk 0:00:27]} 52. Kg6 {[%clk 0:00:07]}  Kxh3 {[%clk 0:00:27]} 53. Kh7 {[%clk 0:00:08]}  Kh2 {[%clk 0:00:28]} 54. Kg6 {[%clk 0:00:09]}  Kg2 {[%clk 0:00:29]} 55. Kg5 {[%clk 0:00:08]}  h3 {[%clk 0:00:30]} 56. Kg6 {[%clk 0:00:09]}  h2 {[%clk 0:00:31]} 57. Kg5 {[%clk 0:00:09]}  h1=Q {[%clk 0:00:31]} 58. Kg6 {[%clk 0:00:10]}  Qh4 {[%clk 0:00:30]} 59. Kf7 {[%clk 0:00:11]}  Qh6 {[%clk 0:00:29]} 60. Kg8 {[%clk 0:00:12]}  Qe6+ {[%clk 0:00:27]} 61. Kh7 {[%clk 0:00:12]}  Qf7+ {[%clk 0:00:27]} 62. Kh6 {[%clk 0:00:12]}  Bf4# {[%clk 0:00:27]} 0-1


[Site "https://www.chess.com"]

[Event "Titled Tuesday Blitz September 21 2021"]
[White "Estrada Nieto, Julian"]
[Black "Molina, Roberto Junio Brito"]
[WhiteFideId "5101018"]
[BlackFideId "2109450"]
[WhiteElo "2270"]
[BlackElo "2402"]
[Result "1-0"]
[Round "03"]
[TimeControl "180+1"]
[Date "2021.09.21"]
[WhiteClock "0:00:14"]
[BlackClock "0:01:26"]

1. e4 {[%clk 0:03:00]}  c6 {[%clk 0:02:59]} 2. d4 {[%clk 0:02:59]}  d5 {[%clk 0:02:59]} 3. exd5 {[%clk 0:02:59]}  cxd5 {[%clk 0:02:58]} 4. Bd3 {[%clk 0:02:59]}  Nc6 {[%clk 0:02:51]} 5. c3 {[%clk 0:02:58]}  g6 {[%clk 0:02:49]} 6. Bf4 {[%clk 0:02:55]}  Bf5 {[%clk 0:02:46]} 7. Bxf5 {[%clk 0:02:49]}  gxf5 {[%clk 0:02:46]} 8. Nf3 {[%clk 0:02:48]}  e6 {[%clk 0:02:43]} 9. O-O {[%clk 0:02:45]}  Bd6 {[%clk 0:02:43]} 10. Bxd6 {[%clk 0:02:39]}  Qxd6 {[%clk 0:02:42]} 11. Re1 {[%clk 0:02:39]}  Nf6 {[%clk 0:02:38]} 12. Ne5 {[%clk 0:02:30]}  Rg8 {[%clk 0:02:37]} 13. Nd2 {[%clk 0:02:22]}  Rg7 {[%clk 0:02:30]} 14. Qb3 {[%clk 0:02:02]}  O-O-O {[%clk 0:02:22]} 15. Ndf3 {[%clk 0:01:48]}  Ne4 {[%clk 0:02:19]} 16. Nxc6 {[%clk 0:01:43]}  Qxc6 {[%clk 0:02:17]} 17. Rac1 {[%clk 0:01:40]}  Kb8 {[%clk 0:02:13]} 18. c4 {[%clk 0:01:37]}  Qb6 {[%clk 0:02:07]} 19. Qxb6 {[%clk 0:01:17]}  axb6 {[%clk 0:02:08]} 20. cxd5 {[%clk 0:01:16]}  Rxd5 {[%clk 0:02:07]} 21. Rc2 {[%clk 0:01:10]}  f6 {[%clk 0:02:01]} 22. Rec1 {[%clk 0:01:08]}  Rgd7 {[%clk 0:01:56]} 23. Rc8+ {[%clk 0:00:59]}  Ka7 {[%clk 0:01:56]} 24. g3 {[%clk 0:00:31]}  e5 {[%clk 0:01:53]} 25. dxe5 {[%clk 0:00:22]}  fxe5 {[%clk 0:01:53]} 26. Re8 {[%clk 0:00:22]}  Rb5 {[%clk 0:01:43]} 27. Nxe5 {[%clk 0:00:14]}  Rd2 {[%clk 0:01:26]} 28. Rcc8 {[%clk 0:00:14]} 1-0


[Site "https://www.chess.com"]

[Event "Titled Tuesday Blitz September 21 2021"]
[White "FGHSMN"]
[Black "Sarana, Alexey"]
[BlackFideId "24133795"]
[WhiteElo "2705"]
[BlackElo "2671"]
[Result "1-0"]
[Round "03"]
[TimeControl "180+1"]
[Date "2021.09.21"]
[WhiteClock "0:00:29"]
[BlackClock "0:00:05"]

1. b3 {[%clk 0:03:00]}  Nf6 {[%clk 0:02:56]} 2. Bb2 {[%clk 0:03:00]}  d6 {[%clk 0:02:52]} 3. d4 {[%clk 0:02:56]}  Bf5 {[%clk 0:02:52]} 4. Nf3 {[%clk 0:02:53]}  h6 {[%clk 0:02:51]} 5. c4 {[%clk 0:02:52]}  e6 {[%clk 0:02:51]} 6. g3 {[%clk 0:02:52]}  d5 {[%clk 0:02:51]} 7. Bg2 {[%clk 0:02:51]}  c6 {[%clk 0:02:48]} 8. O-O {[%clk 0:02:50]}  Nbd7 {[%clk 0:02:48]} 9. Nbd2 {[%clk 0:02:44]}  Be7 {[%clk 0:02:49]} 10. Re1 {[%clk 0:02:43]}  O-O {[%clk 0:02:48]} 11. a3 {[%clk 0:02:38]}  Ne4 {[%clk 0:02:45]} 12. Nxe4 {[%clk 0:02:35]}  Bxe4 {[%clk 0:02:46]} 13. e3 {[%clk 0:02:06]}  b5 {[%clk 0:02:39]} 14. c5 {[%clk 0:02:05]}  a5 {[%clk 0:02:37]} 15. b4 {[%clk 0:02:03]}  axb4 {[%clk 0:02:35]} 16. axb4 {[%clk 0:02:03]}  Qc7 {[%clk 0:02:35]} 17. Nd2 {[%clk 0:01:55]}  Bxg2 {[%clk 0:02:34]} 18. Kxg2 {[%clk 0:01:56]}  f5 {[%clk 0:02:34]} 19. Qe2 {[%clk 0:01:49]}  Nf6 {[%clk 0:02:31]} 20. f3 {[%clk 0:01:48]}  Qb7 {[%clk 0:02:22]} 21. Nb3 {[%clk 0:01:39]}  Bd8 {[%clk 0:02:03]} 22. Rxa8 {[%clk 0:01:37]}  Qxa8 {[%clk 0:02:04]} 23. Ra1 {[%clk 0:01:37]}  Qb7 {[%clk 0:02:05]} 24. Bc3 {[%clk 0:01:34]}  g5 {[%clk 0:01:55]} 25. Qa2 {[%clk 0:01:33]}  g4 {[%clk 0:01:55]} 26. f4 {[%clk 0:01:33]}  Ne4 {[%clk 0:01:54]} 27. Be1 {[%clk 0:01:33]}  Qd7 {[%clk 0:00:56]} 28. Qa7 {[%clk 0:01:30]}  Bc7 {[%clk 0:00:57]} 29. Ra6 {[%clk 0:01:25]}  Rf7 {[%clk 0:00:26]} 30. Qa8+ {[%clk 0:01:19]}  Bd8 {[%clk 0:00:21]} 31. Rxc6 {[%clk 0:01:14]}  Kg7 {[%clk 0:00:20]} 32. Rc8 {[%clk 0:01:11]}  Bf6 {[%clk 0:00:20]} 33. c6 {[%clk 0:01:07]}  Qd6 {[%clk 0:00:19]} 34. Nc5 {[%clk 0:01:01]}  h5 {[%clk 0:00:19]} 35. c7 {[%clk 0:00:58]}  Kh7 {[%clk 0:00:15]} 36. Rh8+ {[%clk 0:00:57]}  Bxh8 {[%clk 0:00:15]} 37. c8=Q {[%clk 0:00:57]}  Bg7 {[%clk 0:00:15]} 38. Qg8+ {[%clk 0:00:57]}  Kg6 {[%clk 0:00:15]} 39. Qae8 {[%clk 0:00:56]}  Qe7 {[%clk 0:00:15]} 40. Qxe7 {[%clk 0:00:53]}  Rxe7 {[%clk 0:00:16]} 41. Nxe6 {[%clk 0:00:52]}  Ra7 {[%clk 0:00:16]} 42. Qe8+ {[%clk 0:00:49]}  Kh6 {[%clk 0:00:15]} 43. Nxg7 {[%clk 0:00:47]}  Ra2+ {[%clk 0:00:16]} 44. Kg1 {[%clk 0:00:47]}  Kxg7 {[%clk 0:00:14]} 45. Qd7+ {[%clk 0:00:46]}  Kg6 {[%clk 0:00:14]} 46. Qxd5 {[%clk 0:00:42]}  Ra1 {[%clk 0:00:13]} 47. Qe6+ {[%clk 0:00:43]}  Kg7 {[%clk 0:00:13]} 48. Qe5+ {[%clk 0:00:42]}  Kg6 {[%clk 0:00:14]} 49. Qe8+ {[%clk 0:00:37]}  Kf6 {[%clk 0:00:13]} 50. Kf1 {[%clk 0:00:36]}  Nd2+ {[%clk 0:00:10]} 51. Ke2 {[%clk 0:00:36]}  Ne4 {[%clk 0:00:08]} 52. d5 {[%clk 0:00:33]}  Ra2+ {[%clk 0:00:08]} 53. Kf1 {[%clk 0:00:33]}  Rxh2 {[%clk 0:00:06]} 54. Qe5+ {[%clk 0:00:31]}  Kg6 {[%clk 0:00:06]} 55. Qe6+ {[%clk 0:00:31]}  Kg7 {[%clk 0:00:07]} 56. Qxf5 {[%clk 0:00:28]}  Rh1+ {[%clk 0:00:06]} 57. Kg2 {[%clk 0:00:29]}  Rxe1 {[%clk 0:00:05]} 58. Qxe4 {[%clk 0:00:29]} 1-0


[Site "https://www.chess.com"]

[Event "Titled Tuesday Blitz September 21 2021"]
[White "Federzoni, Enzo"]
[Black "Tanenbaum, Zachary"]
[WhiteFideId "2173301"]
[BlackFideId "2060850"]
[WhiteElo "1956"]
[BlackElo "2165"]
[Result "0-1"]
[Round "03"]
[TimeControl "180+1"]
[Date "2021.09.21"]
[WhiteClock "0:01:21"]
[BlackClock "0:00:31"]

1. c4 {[%clk 0:03:00]}  e5 {[%clk 0:02:59]} 2. Nc3 {[%clk 0:02:59]}  Nf6 {[%clk 0:02:59]} 3. g3 {[%clk 0:02:59]}  Bc5 {[%clk 0:02:59]} 4. Bg2 {[%clk 0:02:58]}  Nc6 {[%clk 0:02:59]} 5. e3 {[%clk 0:02:57]}  O-O {[%clk 0:02:59]} 6. Nge2 {[%clk 0:02:58]}  Re8 {[%clk 0:03:00]} 7. O-O {[%clk 0:02:56]}  d6 {[%clk 0:03:00]} 8. d4 {[%clk 0:02:54]}  Bb6 {[%clk 0:03:00]} 9. b3 {[%clk 0:02:53]}  Bg4 {[%clk 0:02:46]} 10. h3 {[%clk 0:02:51]}  Bh5 {[%clk 0:02:46]} 11. g4 {[%clk 0:02:50]}  Bg6 {[%clk 0:02:40]} 12. Bb2 {[%clk 0:02:48]}  exd4 {[%clk 0:02:37]} 13. Nxd4 {[%clk 0:02:45]}  Bxd4 {[%clk 0:02:20]} 14. exd4 {[%clk 0:02:46]}  Ne4 {[%clk 0:02:19]} 15. Nxe4 {[%clk 0:02:40]}  Bxe4 {[%clk 0:02:19]} 16. Re1 {[%clk 0:02:35]}  Bxg2 {[%clk 0:02:16]} 17. Kxg2 {[%clk 0:02:36]}  Rxe1 {[%clk 0:02:13]} 18. Qxe1 {[%clk 0:02:37]}  d5 {[%clk 0:02:13]} 19. Qe3 {[%clk 0:02:32]}  Qd7 {[%clk 0:02:06]} 20. Re1 {[%clk 0:02:31]}  h6 {[%clk 0:02:06]} 21. Qf3 {[%clk 0:02:26]}  Rd8 {[%clk 0:01:36]} 22. cxd5 {[%clk 0:02:18]}  Nb4 {[%clk 0:00:53]} 23. Re5 {[%clk 0:01:47]}  Nxd5 {[%clk 0:00:51]} 24. Qe4 {[%clk 0:01:44]}  c6 {[%clk 0:00:50]} 25. a3 {[%clk 0:01:41]}  f6 {[%clk 0:00:48]} 26. Re6 {[%clk 0:01:39]}  Nf4+ {[%clk 0:00:48]} 27. Qxf4 {[%clk 0:01:38]}  Qxe6 {[%clk 0:00:49]} 28. Qc7 {[%clk 0:01:36]}  Qd7 {[%clk 0:00:47]} 29. Qf4 {[%clk 0:01:33]}  Qd5+ {[%clk 0:00:46]} 30. Kg1 {[%clk 0:01:34]}  Qxb3 {[%clk 0:00:46]} 31. Qc7 {[%clk 0:01:33]}  Re8 {[%clk 0:00:42]} 32. Qd7 {[%clk 0:01:28]}  Re1+ {[%clk 0:00:41]} 33. Kh2 {[%clk 0:01:29]}  Qf3 {[%clk 0:00:31]} 34. Qe8+ {[%clk 0:01:21]}  Rxe8 {[%clk 0:00:31]} 0-1


[Site "https://www.chess.com"]